bitfinex/quotes_BTCUSD_20220226
["timestamp","ask_amount","ask_price","bid_price","bid_amount"]
[1645915433587,0.15,39182.0,39177.0,0.003]
[1645915433793,0.15,39182.0,39172.0,0.3231289]
[1645915433794,0.02342965,39178.0,39172.0,0.3231289]
[1645915433988,0.378103,39172.0,39170.0,0.002]
[1645915434187,0.428103,39172.0,39170.0,0.0001]
[1645915434487,1.17593265,39171.0,39170.0,0.0001]
[1645915434684,1.22593265,39171.0,39170.0,0.0001]
[1645915434945,0.45153265,39171.0,39170.0,0.0001]
[1645915435142,0.61912087,39171.0,39170.0,0.0001]
[1645915435349,0.24101787,39171.0,39170.0,0.0001]
[1645915435541,0.44653265,39171.0,39170.0,0.0001]
[1645915435743,0.80549835,39171.0,39170.0,0.0001]
[1645915435943,0.44653265,39171.0,39170.0,0.0001]
[1645915436543,0.44753265,39171.0,39170.0,0.0001]
[1645915436945,0.80649835,39171.0,39170.0,0.0001]
[1645915437148,0.80649835,39171.0,39169.0,0.04022783]
[1645915437343,0.7370687,39170.0,39169.0,0.04022783]
[1645915437543,0.8370687,39170.0,39169.0,0.04022783]
[1645915437745,0.8370687,39170.0,39169.0,0.0398436]
[1645915438578,1.01065692,39170.0,39169.0,0.0398436]
[1645915438780,0.8380687,39170.0,39169.0,0.0398436]
[1645915438983,1.01065692,39170.0,39169.0,0.0398436]
[1645915439180,0.8380687,39170.0,39169.0,0.0398436]
[1645915439584,1.01065692,39170.0,39169.0,0.0398436]
[1645915439780,0.04657936,39168.0,39166.0,0.0011]
[1645915439981,0.76049835,39167.0,39166.0,0.0011]
[1645915440186,0.86049835,39167.0,39166.0,0.0011]
[1645915440580,0.8370687,39167.0,39166.0,0.0011]
[1645915440781,0.8370687,39167.0,39163.0,0.0031]
[1645915441082,0.8370687,39167.0,39164.0,0.0022]
[1645915441681,0.478103,39167.0,39164.0,0.0022]
[1645915442538,0.40153265,39165.0,39164.0,0.0022]
[1645915442739,0.40153265,39165.0,39164.0,0.0024388]
[1645915442936,0.40153265,39165.0,39164.0,0.00209212]
[1645915443135,0.45153265,39165.0,39164.0,0.00209212]
[1645915443335,0.428103,39165.0,39164.0,0.00209212]
[1645915443735,0.45153265,39165.0,39164.0,0.00185332]
[1645915443936,0.428103,39165.0,39164.0,0.00185332]
[1645915444539,0.78567578,39165.0,39164.0,0.00185332]
[1645915444935,0.428103,39165.0,39164.0,0.00185332]
[1645915446388,0.78567578,39165.0,39164.0,0.00185332]
[1645915446584,0.428103,39165.0,39164.0,0.00185332]
[1645915447183,0.85910543,39165.0,39156.0,0.00318594]
[1645915447383,0.85910543,39165.0,39157.0,0.76608]
[1645915447384,0.35757278,39164.0,39157.0,0.76608]
[1645915447584,0.378103,39164.0,39163.0,0.00038448]
[1645915447784,0.1,39165.0,39157.0,0.76300262]
[1645915448188,0.05,39165.0,39157.0,0.76300262]
[1645915448385,0.73567578,39164.0,39157.0,0.76300262]
[1645915448587,0.35757278,39166.0,39157.0,0.73646448]
[1645915448785,0.378103,39165.0,39164.0,6e-05]
[1645915450634,0.373103,39165.0,39164.0,6e-05]
[1645915450833,0.373103,39165.0,39157.0,0.78262448]
[1645915451033,0.40603876,39168.0,39157.0,0.78286154]
[1645915451234,0.05,39168.0,39157.0,0.78286154]
[1645915452036,0.05,39168.0,39157.0,0.78262448]
[1645915452234,0.00014765,39165.0,39157.0,0.76262448]
[1645915453338,0.1206,39171.0,39159.0,0.07657035]
[1645915453586,0.00014764,39165.0,39160.0,0.0511]
[1645915454593,0.02342965,39170.0,39160.0,0.0511]
[1645915454787,0.00014765,39165.0,39160.0,0.0511]
[1645915454990,0.00014765,39165.0,39162.0,0.07657035]
[1645915455190,0.00014765,39165.0,39163.0,0.0511]
[1645915455388,0.02562964,39162.0,39157.0,1.39992448]
[1645915455591,0.02562964,39162.0,39159.0,0.009108]
[1645915455788,0.02562964,39162.0,39160.0,0.0511]
[1645915455989,0.02562964,39162.0,39161.0,0.0511]
[1645915456590,0.02562964,39162.0,39161.0,0.06021]
[1645915458147,0.02562964,39162.0,39161.0,0.43041423]
[1645915458347,0.02562964,39162.0,39161.0,2.09321423]
[1645915458644,0.02562964,39162.0,39161.0,2.39191423]
[1645915459049,0.00038437,39165.0,39164.0,0.958872]
[1645915459245,0.015,39180.0,39170.0,0.034454]
[1645915459449,0.015,39180.0,39174.0,0.009079]
[1645915459652,0.015,39180.0,39175.0,0.0511]
[1645915459846,0.015,39180.0,39173.0,0.6384]
[1645915459847,0.015,39180.0,39176.0,0.060177]
[1645915460044,0.015,39180.0,39177.0,0.0511]
[1645915460254,0.015,39180.0,39178.0,0.009074]
[1645915460446,0.015,39180.0,39179.0,0.060172]
[1645915460859,0.01536202,39180.0,39179.0,0.060172]
[1645915461303,0.01536202,39180.0,39179.0,1.622972]
[1645915461304,0.00046202,39180.0,39179.0,1.622972]
[1645915461500,0.00072655,39193.0,39179.0,1.622972]
[1645915461501,0.17331477,39193.0,39179.0,0.848572]
[1645915461699,0.00072655,39193.0,39181.0,0.009061]
[1645915461899,0.00072655,39193.0,39183.0,0.009058]
[1645915462102,0.17258822,39196.0,39184.0,0.0511]
[1645915462305,0.17258822,39197.0,39185.0,0.009054]
[1645915462500,0.17258822,39199.0,39186.0,0.0511]
[1645915462702,0.17258822,39200.0,39187.0,0.07647]
[1645915463099,0.17258822,39201.0,39188.0,0.34910348]
[1645915463300,0.4168,39202.0,39189.0,0.0511]
[1645915463500,0.4168,39202.0,39190.0,0.34910348]
[1645915463701,0.4168,39202.0,39191.0,0.0511]
[1645915463905,0.4066,39202.0,39192.0,0.22466634]
[1645915464202,0.4066,39202.0,39193.0,0.0511]
[1645915464404,0.4066,39202.0,39195.0,0.009037]
[1645915464603,0.4066,39202.0,39196.0,0.060136]
[1645915464843,1.4985,39207.0,39198.0,0.009033]
[1645915464844,1.1098,39207.0,39198.0,0.009033]
[1645915465039,1.0098,39207.0,39199.0,0.0511]
[1645915465239,0.1,39209.0,39200.0,0.00903]
[1645915465438,0.1,39211.0,39201.0,0.0511]
[1645915465639,0.00038441,39202.0,39201.0,0.0511]
[1645915465837,0.00038441,39202.0,39201.0,0.060128]
[1645915466441,0.1,39211.0,39201.0,0.060128]
[1645915466638,0.015,39210.0,39201.0,0.060128]
[1645915466840,0.04014737,39203.0,39201.0,0.060128]
[1645915467639,0.04,39203.0,39201.0,0.060128]
[1645915469291,0.04,39203.0,39201.0,0.009028]
[1645915469491,0.04,39203.0,39202.0,0.0511]
[1645915469691,0.04,39203.0,39202.0,0.060127]
[1645915472350,0.04,39203.0,39202.0,0.40873058]
[1645915472547,0.04,39203.0,39202.0,0.085497]
[1645915472944,0.04,39203.0,39202.0,0.060127]
[1645915473345,0.04,39203.0,39202.0,0.40873058]
[1645915473545,0.04,39203.0,39202.0,0.060127]
[1645915473946,0.04,39203.0,39202.0,0.085497]
[1645915474355,0.04,39203.0,39202.0,0.43410058]
[1645915474548,0.04,39203.0,39202.0,0.48410058]
[1645915474749,0.04,39203.0,39202.0,0.53410058]
[1645915476390,0.04,39203.0,39202.0,0.50873058]
[1645915477290,0.04,39203.0,39202.0,0.51893058]
[1645915477493,0.04,39203.0,39202.0,0.54430058]
[1645915478194,0.04,39203.0,39202.0,0.53410058]
[1645915478394,0.04,39203.0,39202.0,1.18270058]
[1645915479094,0.04,39203.0,39202.0,0.834097]
[1645915480445,0.03990485,39203.0,39202.0,0.834097]
[1645915480642,0.03990485,39203.0,39202.0,0.823897]
[1645915481042,0.03990485,39203.0,39202.0,0.798527]
[1645915481641,0.03990485,39203.0,39202.0,1.14713058]
[1645915481842,0.03990485,39203.0,39202.0,0.798527]
[1645915483246,0.03990485,39203.0,39202.0,0.748527]
[1645915483442,0.03990485,39203.0,39202.0,0.798527]
[1645915485295,0.03990485,39203.0,39202.0,0.698527]
[1645915485498,0.19938878,39195.0,39193.0,0.0102]
[1645915485700,0.19938878,39195.0,39194.0,1.19535]
[1645915486094,0.19938878,39195.0,39194.0,0.81998]
[1645915486293,0.19938878,39195.0,39194.0,1.61975]
[1645915486494,0.19938878,39195.0,39194.0,2.33454]
[1645915486694,0.19938878,39195.0,39194.0,2.43454]
[1645915486898,0.19938878,39195.0,39194.0,0.81998]
[1645915486899,0.54642092,39195.0,39194.0,0.81998]
[1645915487106,0.19938878,39195.0,39194.0,0.81998]
[1645915487350,0.57750078,39195.0,39194.0,0.81998]
[1645915487654,0.19938878,39195.0,39194.0,0.81998]
[1645915490148,0.57750078,39195.0,39194.0,0.81998]
[1645915491595,1.07453292,39195.0,39194.0,0.11848]
[1645915491797,0.9919636,39191.0,39189.0,0.005]
[1645915491997,0.82514414,39190.0,39189.0,0.005]
[1645915492590,0.82614414,39190.0,39184.0,0.002]
[1645915492790,0.378112,39189.0,39184.0,0.002]
[1645915492992,0.378112,39187.0,39184.0,0.002]
[1645915493194,0.34741741,39189.0,39184.0,0.002]
[1645915493397,0.1,39185.0,39184.0,0.002]
[1645915493594,0.478112,39185.0,39184.0,0.002]
[1645915493793,0.1,39185.0,39184.0,0.002]
[1645915494593,0.1,39185.0,39181.0,0.015]
[1645915494842,0.00038529,39186.0,39181.0,0.015]
[1645915495243,0.34827952,39190.0,39181.0,0.015]
[1645915495444,0.2175636,39191.0,39181.0,0.015]
[1645915495645,0.00038529,39185.0,39181.0,0.015]
[1645915496445,0.1,39186.0,39181.0,0.015]
[1645915496644,0.1,39186.0,39176.0,0.0132]
[1645915497947,0.1,39186.0,39177.0,0.2499]
[1645915498600,0.1,39186.0,39177.0,0.313721]
[1645915500501,0.00038551,39183.0,39178.0,0.05]
[1645915500702,0.00032551,39183.0,39178.0,0.05]
[1645915500903,0.34827952,39190.0,39178.0,0.05]
[1645915501105,0.07532551,39188.0,39178.0,0.05]
[1645915502946,0.2175636,39191.0,39178.0,0.05]
[1645915504248,0.07532551,39185.0,39178.0,0.05]
[1645915505244,0.075711,39185.0,39178.0,0.05]
[1645915505844,0.075711,39185.0,39179.0,0.063816]
[1645915506091,0.07532551,39185.0,39179.0,0.063816]
[1645915506491,0.075711,39185.0,39179.0,0.063816]
[1645915507492,0.2175636,39191.0,39179.0,0.063816]
[1645915507691,0.00038549,39185.0,39179.0,0.063816]
[1645915508292,0.00038549,39185.0,39180.0,0.0511]
[1645915508495,0.2175636,39191.0,39181.0,0.06381]
[1645915508694,0.2175636,39191.0,39182.0,0.0511]
[1645915508898,0.00038549,39185.0,39183.0,0.76564]
[1645915509093,0.00038549,39185.0,39184.0,0.0511]
[1645915509296,0.00038549,39185.0,39184.0,0.82678827]
[1645915509694,0.2175636,39191.0,39184.0,0.82678827]
[1645915509951,0.00038549,39186.0,39184.0,0.82678827]
[1645915510958,0.2175636,39191.0,39184.0,0.82678827]
[1645915511155,0.00038548,39187.0,39184.0,0.82678827]
[1645915512151,0.2175636,39191.0,39184.0,0.82678827]
[1645915512351,0.00038548,39187.0,39184.0,0.82678827]
[1645915513353,0.2175636,39191.0,39184.0,0.82678827]
[1645915513603,0.00038548,39187.0,39184.0,0.82678827]
[1645915514208,0.00038548,39187.0,39186.0,0.01006827]
[1645915514403,0.00038548,39187.0,39186.0,0.82674827]
[1645915514604,0.2175636,39191.0,39186.0,0.83681654]
[1645915514804,0.00038548,39188.0,39186.0,0.83681654]
[1645915515404,0.00038548,39188.0,39186.0,0.26165985]
[1645915515805,0.2175636,39191.0,39186.0,0.26165985]
[1645915516009,0.00038547,39189.0,39186.0,0.26165985]
[1645915516203,0.00038547,39189.0,39187.0,0.05]
[1645915516404,0.00032547,39189.0,39188.0,1.3817]
[1645915517007,0.2175636,39191.0,39188.0,1.3817]
[1645915517211,0.2175636,39191.0,39188.0,1.695403]
[1645915517458,0.2175636,39191.0,39188.0,1.759204]
[1645915518048,0.2025636,39191.0,39189.0,0.8244]
[1645915518248,0.2025636,39191.0,39190.0,0.0511]
[1645915519947,0.2025636,39191.0,39190.0,0.83556827]
[1645915520146,0.2025636,39191.0,39190.0,0.88556827]
[1645915520548,0.2025636,39191.0,39190.0,0.93556827]
[1645915520948,0.2025636,39191.0,39190.0,0.16116827]
[1645915521203,0.2025636,39191.0,39190.0,0.93556827]
[1645915521605,0.2025636,39191.0,39190.0,0.16116827]
[1645915522010,0.2025636,39191.0,39190.0,0.01006827]
[1645915525454,0.27788911,39191.0,39190.0,0.01006827]
[1645915525651,0.2025636,39191.0,39190.0,0.01006827]
[1645915525854,0.1975636,39191.0,39190.0,0.31106827]
[1645915526353,0.1975636,39191.0,39190.0,0.41106827]
[1645915532106,0.1975636,39191.0,39190.0,0.16116827]
[1645915533856,0.19674244,39191.0,39190.0,0.16116827]
[1645915535458,0.19774244,39191.0,39190.0,0.16116827]
[1645915537096,0.04774244,39191.0,39190.0,0.16116827]
[1645915537599,0.04774244,39191.0,39190.0,0.93540441]
[1645915537899,0.04774244,39191.0,39190.0,0.22479841]
[1645915538098,0.04774244,39191.0,39190.0,1.55539841]
[1645915538498,0.04774244,39191.0,39190.0,2.32979841]
[1645915540552,0.04774244,39191.0,39190.0,1.55539841]
[1645915541355,0.04774244,39191.0,39190.0,1.5800729]
[1645915542457,0.04774244,39191.0,39190.0,1.7800729]
[1645915542653,0.04774244,39191.0,39190.0,2.5544729]
[1645915542853,0.04774244,39191.0,39190.0,1.5800729]
[1645915543054,0.04774244,39191.0,39190.0,2.3299729]
[1645915543695,0.04774244,39191.0,39190.0,3.1043729]
[1645915543895,0.04774244,39191.0,39190.0,3.07969841]
[1645915544296,0.04774244,39191.0,39190.0,3.1043729]
[1645915546402,0.04774244,39191.0,39190.0,3.7427729]
[1645915546801,0.04774244,39191.0,39190.0,3.7681429]
[1645915547001,0.19938878,39195.0,39194.0,0.2]
[1645915547204,0.19938878,39195.0,39194.0,3.47682334]
[1645915547456,0.19938878,39195.0,39194.0,3.50219334]
[1645915547654,0.19938878,39195.0,39194.0,3.51226161]
[1645915548649,0.19938878,39195.0,39194.0,4.01226161]
[1645915549466,1.0,39201.0,39200.0,0.82485807]
[1645915549663,0.03990485,39203.0,39202.0,0.79977]
[1645915549858,0.03990485,39203.0,39202.0,3.20198794]
[1645915550054,0.7753,39222.0,39202.0,3.20198794]
[1645915550055,0.34713652,39221.0,39207.0,0.02537]
[1645915550258,0.3849,39222.0,39216.0,1.4128]
[1645915550466,0.3849,39222.0,39217.0,0.0511]
[1645915550658,0.3849,39222.0,39217.0,0.8255]
[1645915550853,0.00038528,39221.0,39217.0,0.8755]
[1645915551514,0.00038528,39221.0,39217.0,0.939252]
[1645915551713,0.01,39229.0,39220.0,1.4128]
[1645915551917,0.01,39229.0,39224.0,0.7744]
[1645915552215,0.01,39229.0,39225.0,0.8755]
[1645915552413,0.01,39229.0,39225.0,0.9255]
[1645915552816,0.01,39229.0,39227.0,0.01006827]
[1645915553011,0.01,39229.0,39228.0,0.0511]
[1645915553213,0.01038523,39229.0,39228.0,0.40377558]
[1645915553612,0.01038523,39229.0,39228.0,0.351]
[1645915553811,0.01038523,39229.0,39228.0,0.70367558]
[1645915554015,0.01038523,39229.0,39228.0,0.75367558]
[1645915554213,0.01,39229.0,39228.0,0.75367558]
[1645915554415,0.01,39229.0,39228.0,0.401]
[1645915554615,0.01,39229.0,39228.0,0.75367558]
[1645915556845,0.01,39229.0,39228.0,0.401]
[1645915557247,0.01,39229.0,39228.0,1.59180758]
[1645915558249,0.01,39229.0,39228.0,1.60187585]
[1645915558705,0.01,39229.0,39228.0,2.24027585]
[1645915559106,0.01,39229.0,39228.0,2.88057585]
[1645915559503,0.01,39229.0,39228.0,3.57007585]
[1645915560207,0.01,39229.0,39228.0,3.59475034]
[1645915560406,0.01,39229.0,39228.0,3.78890034]
[1645915560613,0.00038522,39230.0,39229.0,1.12551674]
[1645915560808,0.00038522,39230.0,39229.0,2.90959232]
[1645915561007,0.00038522,39230.0,39229.0,3.80927232]
[1645915561407,0.04,39236.0,39232.0,0.7744]
[1645915561609,0.04,39236.0,39235.0,1.476517]
[1645915561810,0.04,39236.0,39235.0,2.907317]
[1645915562007,0.04,39236.0,39235.0,2.957317]
[1645915562664,0.04,39236.0,39235.0,2.967497]
[1645915563659,0.04,39236.0,39235.0,3.22746527]
[1645915563958,0.04,39236.0,39235.0,2.45306527]
[1645915564158,0.04,39236.0,39235.0,3.22746527]
[1645915564559,0.035,39236.0,39235.0,3.21728527]
[1645915564759,0.035,39236.0,39235.0,2.44288527]
[1645915565157,0.035,39236.0,39235.0,3.21728527]
[1645915566199,0.035,39236.0,39235.0,2.44288527]
[1645915566400,0.035,39236.0,39235.0,3.21728527]
[1645915569862,0.035,39236.0,39235.0,2.44288527]
[1645915574209,0.035,39236.0,39235.0,3.24195976]
[1645915574514,0.00671364,39236.0,39235.0,3.48830976]
[1645915574726,0.34991715,39254.0,39243.0,0.7744]
[1645915574912,0.3884,39255.0,39245.0,0.063701]
[1645915575111,0.3884,39255.0,39246.0,0.40377558]
[1645915575311,0.3884,39255.0,39246.0,0.50377558]
[1645915575511,0.3884,39255.0,39250.0,0.01006827]
[1645915575711,0.3884,39255.0,39251.0,0.1148]
[1645915575912,0.3884,39255.0,39251.0,0.1648]
[1645915576212,0.00038534,39254.0,39251.0,0.2148]
[1645915576911,0.3884,39255.0,39251.0,0.278499]
[1645915577364,0.00038534,39254.0,39251.0,0.278499]
[1645915578264,0.3884,39255.0,39251.0,0.278499]
[1645915578463,0.00038534,39254.0,39251.0,0.278499]
[1645915578665,0.00160811,39254.0,39251.0,0.278499]
[1645915578865,0.00160811,39254.0,39251.0,0.1511]
[1645915579467,0.00122277,39254.0,39251.0,0.1511]
[1645915579668,0.00160811,39254.0,39251.0,0.1511]
[1645915580569,0.00122277,39254.0,39245.0,0.09918279]
[1645915580768,0.00160811,39254.0,39246.0,0.0531]
[1645915580970,0.00160811,39254.0,39247.0,0.063702]
[1645915581208,0.00160811,39254.0,39249.0,0.063705]
[1645915581406,0.00160811,39254.0,39250.0,1.3805]
[1645915581805,0.00122277,39254.0,39250.0,1.3805]
[1645915582004,0.00160811,39254.0,39250.0,1.3805]
[1645915582207,0.00160811,39254.0,39250.0,1.4305]
[1645915582404,0.00160811,39254.0,39250.0,1.4805]
[1645915583106,0.00122277,39254.0,39250.0,1.4805]
[1645915583408,0.00160811,39254.0,39250.0,1.4805]
[1645915584214,0.00122277,39254.0,39250.0,1.4805]
[1645915584606,0.00160811,39254.0,39250.0,1.4805]
[1645915585448,0.00122277,39254.0,39250.0,1.4805]
[1645915585650,0.00160811,39254.0,39250.0,1.4805]
[1645915586252,0.38000811,39255.0,39250.0,1.4805]
[1645915586453,0.38000811,39255.0,39251.0,0.765781]
[1645915586653,0.38000811,39255.0,39252.0,1.3805]
[1645915586855,0.38000811,39255.0,39253.0,0.6384]
[1645915587054,0.4109,39259.0,39254.0,1.3804]
[1645915587253,0.01,39259.0,39254.0,1.4304]
[1645915587551,0.01,39259.0,39255.0,0.063689]
[1645915587751,0.01,39259.0,39256.0,1.3804]
[1645915587951,0.01,39259.0,39256.0,1.4304]
[1645915588251,0.01,39259.0,39256.0,1.4804]
[1645915589697,0.0090932,39259.0,39256.0,1.4804]
[1645915590598,0.00947851,39259.0,39256.0,1.4804]
[1645915591399,0.0090932,39259.0,39256.0,1.49057]
[1645915591596,0.00947851,39259.0,39256.0,1.49057]
[1645915592658,0.0090932,39259.0,39257.0,0.01017]
[1645915592854,0.00947851,39259.0,39258.0,1.37995]
[1645915593156,0.07980402,39259.0,39258.0,1.42995]
[1645915593752,0.07941871,39259.0,39258.0,1.42995]
[1645915596801,0.07941871,39259.0,39258.0,1.42495]
[1645915600461,0.07941871,39259.0,39258.0,1.41995]
[1645915601263,0.07941871,39259.0,39258.0,1.36885]
[1645915603466,0.07941871,39259.0,39258.0,1.32885]
[1645915610456,0.07941871,39259.0,39258.0,0.75459682]
[1645915627399,0.29194782,39259.0,39258.0,0.75459682]
[1645915629951,0.07941871,39259.0,39258.0,0.75459682]
[1645915630151,0.29306047,39259.0,39258.0,0.75459682]
[1645915630350,0.07941871,39259.0,39258.0,0.75459682]
[1645915631651,0.2929702,39259.0,39258.0,0.75459682]
[1645915631853,0.07941871,39259.0,39258.0,0.75459682]
[1645915632454,0.34508009,39259.0,39258.0,0.75459682]
[1645915633801,0.34508009,39259.0,39258.0,0.75449051]
[1645915634199,0.07941871,39259.0,39258.0,0.75449051]
[1645915635608,0.42919737,39259.0,39258.0,0.75449051]
[1645915636103,0.69592516,39259.0,39258.0,0.03666061]
[1645915636307,0.42919737,39259.0,39258.0,0.03666061]
[1645915636504,0.69589566,39259.0,39258.0,0.03666061]
[1645915637351,0.74799103,39259.0,39258.0,0.03666061]
[1645915639155,1.33033531,39259.0,39258.0,6.1e-07]
[1645915639349,2.02022944,39259.0,39258.0,6.1e-07]
[1645915639552,2.17739944,39259.0,39258.0,6.1e-07]
[1645915639951,2.17739944,39259.0,39253.0,6.1e-07]
[1645915639952,0.147,39254.0,39253.0,6.1e-07]
[1645915640152,3.42134522,39254.0,39253.0,6.1e-07]
[1645915640358,3.42134522,39254.0,39237.0,0.21498826]
[1645915640359,0.147,39243.0,39237.0,0.21498826]
[1645915640554,0.40756958,39235.0,39234.0,0.21498826]
[1645915640751,0.40756958,39235.0,39231.0,0.21526182]
[1645915640752,0.378112,39234.0,39231.0,0.21526182]
[1645915640950,0.07532551,39232.0,39230.0,0.21526182]
[1645915641211,0.1,39231.0,39230.0,0.21526182]
[1645915641416,0.1,39231.0,39225.0,0.32248239]
[1645915641417,0.378112,39229.0,39225.0,0.32248239]
[1645915641617,0.378112,39229.0,39218.0,0.0031]
[1645915641618,0.378112,39225.0,39222.0,0.1998]
[1645915641811,0.17532551,39226.0,39222.0,0.1998]
[1645915642012,0.07532551,39223.0,39222.0,0.1998]
[1645915642414,0.55343751,39223.0,39222.0,0.1998]
[1645915643210,0.55343751,39223.0,39218.0,0.0031]
[1645915643211,0.2,39222.0,39218.0,0.0031]
[1645915643416,0.90668047,39221.0,39218.0,0.0031]
[1645915644012,0.90668047,39221.0,39220.0,0.2149]
[1645915644952,0.52856847,39221.0,39220.0,0.2149]
[1645915645151,0.55343751,39221.0,39220.0,0.2149]
[1645915645754,0.17532551,39221.0,39220.0,0.2149]
[1645915645953,0.55343751,39221.0,39220.0,0.2149]
[1645915646654,1.7851,39220.0,39218.0,0.0031]
[1645915647155,0.52742543,39219.0,39218.0,0.203]
[1645915647352,0.17532551,39219.0,39218.0,0.203]
[1645915647955,1.81042551,39220.0,39218.0,0.0031]
[1645915648621,0.1,39219.0,39218.0,0.0031]
[1645915648825,0.45008902,39219.0,39218.0,0.0031]
[1645915649627,1.71142551,39220.0,39218.0,0.0031]
[1645915650222,1.71042551,39220.0,39218.0,0.0031]
[1645915651121,1.71142551,39220.0,39218.0,0.0031]
[1645915654345,1.71042551,39220.0,39218.0,0.0031]
[1645915656600,0.17240281,39219.0,39218.0,0.0031]
[1645915659505,0.13972814,39219.0,39218.0,0.0031]
[1645915659702,1.70732551,39218.0,39217.0,0.01218]
[1645915660249,1.70732551,39218.0,39217.0,0.08865]
[1645915660446,1.70732551,39218.0,39217.0,0.43731888]
[1645915660847,1.52952551,39218.0,39217.0,0.43731888]
[1645915661049,1.52952551,39218.0,39217.0,0.48731888]
[1645915663704,1.52952551,39218.0,39217.0,0.53735344]
[1645915663904,1.52952551,39218.0,39217.0,0.18865]
[1645915666210,1.33677551,39215.0,39214.0,1.0625138]
[1645915666408,0.6418611,39215.0,39214.0,1.0625138]
[1645915666606,0.6418611,39215.0,39214.0,1.0727138]
[1645915667556,0.6418611,39215.0,39214.0,1.41968468]
[1645915668251,0.6418611,39215.0,39214.0,0.69528468]
[1645915668454,0.6368611,39215.0,39214.0,0.69528468]
[1645915668855,0.63675572,39215.0,39214.0,0.69528468]
[1645915669255,0.63675572,39215.0,39214.0,1.46968468]
[1645915669657,0.63675572,39215.0,39214.0,1.52078468]
[1645915669856,0.63675572,39215.0,39214.0,1.62078468]
[1645915671204,0.63675572,39215.0,39214.0,2.38580468]
[1645915675749,0.63675572,39215.0,39214.0,2.88580468]
[1645915676352,0.17236101,39233.0,39223.0,0.063745]
[1645915676550,0.17236101,39233.0,39224.0,0.39739136]
[1645915676750,0.17236101,39233.0,39224.0,0.1011]
[1645915677955,1.0098,39234.0,39224.0,0.1011]
[1645915678152,1.0098,39234.0,39224.0,0.1511]
[1645915678352,1.0098,39234.0,39224.0,0.1011]
[1645915678610,0.17235651,39233.0,39224.0,0.1011]
[1645915679415,1.0098,39234.0,39224.0,0.1011]
[1645915681014,1.0098,39234.0,39224.0,0.0961]
[1645915681213,1.0098,39234.0,39224.0,0.1461]
[1645915684256,1.0098,39234.0,39225.0,0.34629136]
[1645915684455,1.0098,39234.0,39225.0,0.39739136]
[1645915686403,1.0098,39234.0,39225.0,0.0511]
[1645915688196,1.0098,39234.0,39225.0,0.39739136]
[1645915689697,1.0098,39234.0,39225.0,0.0511]
[1645915690956,1.22716958,39235.0,39225.0,0.39739136]
[1645915692557,1.22716958,39235.0,39225.0,0.6657562]
[1645915693999,1.22716958,39235.0,39225.0,0.6146562]
[1645915695706,1.22716958,39235.0,39227.0,0.06374]
[1645915697001,1.22716958,39235.0,39226.0,0.6646562]
[1645915698760,1.22716958,39235.0,39227.0,0.26836484]
[1645915700158,1.22716958,39235.0,39229.0,0.21522467]
[1645915700359,0.80466958,39235.0,39229.0,0.21522467]
[1645915700958,0.80460232,39235.0,39229.0,0.21522467]
[1645915701203,0.80460232,39235.0,39230.0,0.21522467]
[1645915702607,0.80460232,39235.0,39231.0,0.21522467]
[1645915703706,0.80460232,39235.0,39229.0,0.26836484]
[1645915703905,0.80460232,39235.0,39232.0,0.21529141]
[1645915704107,0.80460232,39235.0,39229.0,0.26836484]
[1645915704306,0.80460232,39235.0,39232.0,0.21529148]
[1645915704509,0.80460232,39235.0,39229.0,0.26836484]
[1645915704706,0.80460232,39235.0,39230.0,0.26836484]
[1645915704956,0.80460232,39235.0,39232.0,0.21530049]
[1645915705156,0.80460232,39235.0,39230.0,0.26836484]
[1645915705157,0.40750232,39235.0,39230.0,0.26836484]
[1645915705357,0.40750232,39235.0,39232.0,0.21529811]
[1645915705757,0.40750232,39235.0,39232.0,0.21530887]
[1645915705959,0.40750232,39235.0,39230.0,0.25736485]
[1645915706155,0.40750232,39235.0,39232.0,0.21530883]
[1645915706360,0.40750232,39235.0,39230.0,0.25736485]
[1645915706557,0.40750232,39235.0,39232.0,0.21531099]
[1645915706757,0.40750232,39235.0,39230.0,0.25736485]
[1645915706961,0.40750232,39235.0,39232.0,0.21530939]
[1645915707156,0.40750232,39235.0,39230.0,0.25736485]
[1645915707359,0.1269,39239.0,39232.0,0.21531076]
[1645915707557,0.17234124,39241.0,39232.0,0.215309]
[1645915707957,0.21267948,39242.0,39232.0,0.215309]
[1645915710503,0.16267948,39242.0,39232.0,0.215309]
[1645915711405,0.33040562,39231.0,39229.0,0.34506298]
[1645915711606,0.33040562,39231.0,39227.0,0.32348239]
[1645915712950,0.28040562,39231.0,39227.0,0.32348239]
[1645915713152,0.28040562,39231.0,39227.0,0.32248239]
[1645915713854,0.28040562,39231.0,39227.0,0.66560223]
[1645915714451,0.25862091,39231.0,39227.0,0.66560223]
[1645915714750,0.25862091,39231.0,39230.0,0.26915918]
[1645915715552,0.20862091,39231.0,39230.0,0.26915918]
[1645915718921,0.20862091,39231.0,39229.0,0.26915918]
[1645915727656,0.20862091,39231.0,39230.0,0.26915918]
[1645915729756,0.20862091,39231.0,39228.0,0.32248239]
[1645915731208,0.20862091,39231.0,39229.0,0.32248239]
[1645915732408,0.20862091,39231.0,39229.0,0.02248239]
[1645915735275,0.20862091,39231.0,39228.0,0.42622946]
[1645915736476,0.20862091,39231.0,39230.0,0.901855]
[1645915736779,0.20862091,39231.0,39230.0,2.30733402]
[1645915736973,0.20862091,39231.0,39230.0,1.53293402]
[1645915737173,0.20862091,39231.0,39230.0,2.30733402]
[1645915737372,0.20862091,39231.0,39230.0,1.53293402]
[1645915737972,0.20862091,39231.0,39230.0,2.30733402]
[1645915739814,0.20862091,39231.0,39230.0,2.33270402]
[1645915740819,0.20862091,39231.0,39230.0,1.90975486]
[1645915741019,0.20862091,39231.0,39230.0,1.5180395]
[1645915741223,0.20862091,39231.0,39230.0,1.08772564]
[1645915741619,0.20862091,39231.0,39230.0,0.76472]
[1645915742462,0.20868091,39231.0,39230.0,0.76472]
[1645915746510,0.20868091,39231.0,39230.0,1.03390981]
[1645915748010,0.20862091,39231.0,39230.0,1.03390981]
[1645915751358,0.20862091,39231.0,39230.0,0.76472]
[1645915751557,0.20862091,39231.0,39230.0,1.03390981]
[1645915755011,0.20853077,39231.0,39230.0,1.03390981]
[1645915755609,0.20853077,39231.0,39230.0,0.76472]
[1645915756809,0.20853077,39231.0,39230.0,1.08772564]